[Event "*** Titled Tuesday Blitz"]
[Site "Chess.com"]
[Date "2020.05.26"]
[Round "2"]
[White "MFguimaraes"]
[Black "mattcolins2025"]
[Result "1-0"]
[WhiteElo "2518"]
[BlackElo "2277"]
[TimeControl "180+1"]
[EndTime "10:15:44 PDT"]
[Termination "MFguimaraes won by resignation"]

1. e4 {[%clk 0:03:00.9]} 1... c5 {[%clk 0:02:59.9]} 2. Nf3 {[%clk 0:03:01.1]}
2... e6 {[%clk 0:03:00.2]} 3. g3 {[%clk 0:03:00.4]} 3... Nc6 {[%clk 0:03:00.2]}
4. Bg2 {[%clk 0:03:00.5]} 4... Nf6 {[%clk 0:03:00.3]} 5. Nc3 {[%clk 0:03:00.3]}
5... d5 {[%clk 0:02:59.2]} 6. exd5 {[%clk 0:03:00.1]} 6... exd5 {[%clk
0:02:59.2]} 7. d4 {[%clk 0:03:00.7]} 7... cxd4 {[%clk 0:02:56.3]} 8. Nxd4 {[%clk
0:03:00.5]} 8... Bc5 {[%clk 0:02:56.4]} 9. Be3 {[%clk 0:03:00.2]} 9... Qe7
{[%clk 0:02:43.1]} 10. O-O {[%clk 0:02:47.7]} 10... Be6 {[%clk 0:02:40.3]} 11.
Re1 {[%clk 0:02:33.3]} 11... Rd8 {[%clk 0:02:33.8]} 12. Nf5 {[%clk 0:02:20.8]}
12... d4 {[%clk 0:02:29]} 13. Nxe7 {[%clk 0:02:14.4]} 13... dxe3 {[%clk
0:02:28.4]} 14. Nxc6 {[%clk 0:01:53.5]} 14... exf2+ {[%clk 0:02:27.6]} 15. Kh1
{[%clk 0:01:53.5]} 15... fxe1=Q+ {[%clk 0:01:44.3]} 16. Qxe1 {[%clk 0:01:51.1]}
16... bxc6 {[%clk 0:01:45.2]} 17. Bxc6+ {[%clk 0:01:50]} 17... Ke7 {[%clk
0:01:43.9]} 18. Bf3 {[%clk 0:01:43.5]} 18... Rd7 {[%clk 0:01:39.9]} 19. Rd1
{[%clk 0:01:42.5]} 19... Rxd1 {[%clk 0:01:38.8]} 20. Qxd1 {[%clk 0:01:39.9]}
20... Rd8 {[%clk 0:01:38.3]} 21. Qe2 {[%clk 0:01:38.9]} 21... Kf8 {[%clk
0:01:35.1]} 22. Kg2 {[%clk 0:01:37.8]} 22... Bb6 {[%clk 0:01:26.3]} 23. a3
{[%clk 0:01:32.7]} 23... Re8 {[%clk 0:01:25.5]} 24. Qb5 {[%clk 0:01:27.3]} 24...
Bd7 {[%clk 0:01:17.5]} 25. Qb4+ {[%clk 0:01:20.9]} 25... Kg8 {[%clk 0:01:16.3]}
26. a4 {[%clk 0:01:20.2]} 26... Re1 {[%clk 0:01:07]} 27. Ne2 {[%clk 0:01:15.2]}
27... g5 {[%clk 0:00:55.6]} 28. Qxe1 {[%clk 0:01:13.8]} 28... g4 {[%clk
0:00:51.8]} 29. Bb7 {[%clk 0:01:13.1]} 1-0

[Event "*** Titled Tuesday Blitz"]
[Site "Chess.com"]
[Date "2020.05.26"]
[Round "2"]
[White "Zhuu96"]
[Black "konradrutkowski"]
[Result "1-0"]
[WhiteElo "2839"]
[BlackElo "2314"]
[TimeControl "180+1"]
[EndTime "10:15:49 PDT"]
[Termination "Zhuu96 won by checkmate"]

1. d4 {[%clk 0:03:00.9]} 1... Nf6 {[%clk 0:02:59.4]} 2. Nf3 {[%clk 0:03:00.1]}
2... g6 {[%clk 0:02:59.7]} 3. c4 {[%clk 0:02:54.5]} 3... Bg7 {[%clk 0:02:59.7]}
4. Nc3 {[%clk 0:02:54.4]} 4... O-O {[%clk 0:02:59.8]} 5. e3 {[%clk 0:02:50.8]}
5... d6 {[%clk 0:02:59]} 6. Be2 {[%clk 0:02:50.7]} 6... c5 {[%clk 0:02:58.3]} 7.
O-O {[%clk 0:02:50.9]} 7... b6 {[%clk 0:02:54]} 8. d5 {[%clk 0:02:50.7]} 8... e6
{[%clk 0:02:53.7]} 9. e4 {[%clk 0:02:50.9]} 9... exd5 {[%clk 0:02:45.2]} 10.
exd5 {[%clk 0:02:50.5]} 10... Na6 {[%clk 0:02:46.1]} 11. Bf4 {[%clk 0:02:47.9]}
11... Nc7 {[%clk 0:02:46.1]} 12. Nd2 {[%clk 0:02:47.7]} 12... Re8 {[%clk
0:02:42.4]} 13. Bf3 {[%clk 0:02:47.4]} 13... a6 {[%clk 0:02:39.9]} 14. a4 {[%clk
0:02:45]} 14... Rb8 {[%clk 0:02:38.5]} 15. Re1 {[%clk 0:02:41.7]} 15... h5
{[%clk 0:02:15]} 16. h3 {[%clk 0:02:33.4]} 16... Bf5 {[%clk 0:02:12.9]} 17. Nf1
{[%clk 0:02:28.3]} 17... Rxe1 {[%clk 0:02:08.5]} 18. Qxe1 {[%clk 0:02:26.5]}
18... b5 {[%clk 0:02:03.2]} 19. axb5 {[%clk 0:02:26.4]} 19... axb5 {[%clk
0:02:04.1]} 20. Ne3 {[%clk 0:02:26.1]} 20... Bd3 {[%clk 0:01:59.5]} 21. cxb5
{[%clk 0:02:23.3]} 21... Nxb5 {[%clk 0:01:57]} 22. Qd2 {[%clk 0:02:20.8]} 22...
c4 {[%clk 0:01:43.2]} 23. Ra6 {[%clk 0:02:20.2]} 23... Rb6 {[%clk 0:01:18.6]}
24. Rxb6 {[%clk 0:02:08.8]} 24... Qxb6 {[%clk 0:01:18]} 25. Nxb5 {[%clk
0:02:08]} 25... Qxb5 {[%clk 0:01:16.9]} 26. Bxd6 {[%clk 0:02:08.5]} 26... Be4
{[%clk 0:00:38.3]} 27. Be5 {[%clk 0:02:02.2]} 27... Bxf3 {[%clk 0:00:36.9]} 28.
gxf3 {[%clk 0:02:00.8]} 28... Nxd5 {[%clk 0:00:19.3]} 29. Bxg7 {[%clk
0:01:58.6]} 29... Nxe3 {[%clk 0:00:19.1]} 30. Bf6 {[%clk 0:01:57.7]} 30... Nf5
{[%clk 0:00:14.9]} 31. Qd8+ {[%clk 0:01:56.7]} 31... Kh7 {[%clk 0:00:14.9]} 32.
Qh8# {[%clk 0:01:56.6]} 1-0

[Event "*** Titled Tuesday Blitz"]
[Site "Chess.com"]
[Date "2020.05.26"]
[Round "2"]
[White "Colombiano07"]
[Black "Onwgs"]
[Result "0-1"]
[WhiteElo "2265"]
[BlackElo "2477"]
[TimeControl "180+1"]
[EndTime "10:15:49 PDT"]
[Termination "Onwgs won by resignation"]

1. e4 {[%clk 0:03:00.9]} 1... c5 {[%clk 0:02:24.2]} 2. Nf3 {[%clk 0:02:59.3]}
2... e6 {[%clk 0:02:24.6]} 3. d4 {[%clk 0:02:59.8]} 3... cxd4 {[%clk 0:02:25.2]}
4. Nxd4 {[%clk 0:03:00.7]} 4... a6 {[%clk 0:02:25.9]} 5. Nc3 {[%clk 0:03:01.1]}
5... b5 {[%clk 0:02:26.3]} 6. g3 {[%clk 0:03:00.9]} 6... Bb7 {[%clk 0:02:26.2]}
7. Bg2 {[%clk 0:03:01.5]} 7... d6 {[%clk 0:02:26.2]} 8. O-O {[%clk 0:03:01.5]}
8... Nd7 {[%clk 0:02:26.8]} 9. Re1 {[%clk 0:03:02.1]} 9... Qc7 {[%clk
0:02:26.8]} 10. a4 {[%clk 0:02:53.2]} 10... b4 {[%clk 0:02:26.3]} 11. Na2 {[%clk
0:02:53.5]} 11... a5 {[%clk 0:02:25.8]} 12. c3 {[%clk 0:02:53.8]} 12... bxc3
{[%clk 0:02:25.4]} 13. Nxc3 {[%clk 0:02:54.7]} 13... Ngf6 {[%clk 0:02:25.5]} 14.
Ndb5 {[%clk 0:02:53]} 14... Qb8 {[%clk 0:02:25.6]} 15. Bf4 {[%clk 0:02:46.7]}
15... e5 {[%clk 0:02:25.7]} 16. Bg5 {[%clk 0:02:47.1]} 16... Be7 {[%clk
0:02:26]} 17. Rc1 {[%clk 0:02:45]} 17... O-O {[%clk 0:02:25.5]} 18. Qd2 {[%clk
0:02:38.3]} 18... h6 {[%clk 0:02:25.3]} 19. Bxf6 {[%clk 0:02:38]} 19... Nxf6
{[%clk 0:02:24.6]} 20. Red1 {[%clk 0:02:21.3]} 20... Rd8 {[%clk 0:02:24.2]} 21.
Kh1 {[%clk 0:02:16.6]} 21... Ra6 {[%clk 0:02:23.7]} 22. f3 {[%clk 0:02:16.5]}
22... Rc6 {[%clk 0:02:23.5]} 23. Nd5 {[%clk 0:02:11]} 23... Nxd5 {[%clk
0:02:23.2]} 24. exd5 {[%clk 0:02:08.2]} 24... Rxc1 {[%clk 0:02:23.1]} 25. Rxc1
{[%clk 0:02:09.1]} 25... Bg5 {[%clk 0:02:23.2]} 26. f4 {[%clk 0:02:07.8]} 26...
exf4 {[%clk 0:02:23.5]} 27. gxf4 {[%clk 0:02:08.7]} 27... Bf6 {[%clk 0:02:24.2]}
28. Qxa5 {[%clk 0:02:03.9]} 28... Rc8 {[%clk 0:02:21.6]} 29. Rxc8+ {[%clk
0:01:58.4]} 29... Qxc8 {[%clk 0:02:22.5]} 30. Qc7 {[%clk 0:01:58.7]} 30... Qa8
{[%clk 0:02:17.9]} 31. Qc4 {[%clk 0:01:13.4]} 31... Qa5 {[%clk 0:02:13.6]} 32.
Nxd6 {[%clk 0:01:01]} 32... Ba6 {[%clk 0:02:10.4]} 33. Nb5 {[%clk 0:00:54.8]}
33... Bb7 {[%clk 0:02:04.7]} 34. h3 {[%clk 0:00:47.6]} 34... Qe1+ {[%clk
0:02:03.6]} 35. Qf1 {[%clk 0:00:43.6]} 35... Qd2 {[%clk 0:02:01.9]} 36. d6
{[%clk 0:00:41.2]} 36... Bxg2+ {[%clk 0:01:59.8]} 37. Qxg2 {[%clk 0:00:42.1]}
37... Qc1+ {[%clk 0:02:00.2]} 38. Kh2 {[%clk 0:00:41]} 38... Qxf4+ {[%clk
0:02:00]} 39. Kh1 {[%clk 0:00:40.6]} 39... Qc1+ {[%clk 0:01:59.7]} 40. Kh2
{[%clk 0:00:40.9]} 40... Be5+ {[%clk 0:01:59.9]} 0-1

[Event "*** Titled Tuesday Blitz"]
[Site "Chess.com"]
[Date "2020.05.26"]
[Round "2"]
[White "1stSecond"]
[Black "Agnes66678"]
[Result "1-0"]
[WhiteElo "2706"]
[BlackElo "2471"]
[TimeControl "180+1"]
[EndTime "10:15:51 PDT"]
[Termination "1stSecond won by resignation"]

1. c4 {[%clk 0:02:59.1]} 1... Nf6 {[%clk 0:02:58.7]} 2. Nc3 {[%clk 0:02:58.3]}
2... e6 {[%clk 0:02:58.6]} 3. e4 {[%clk 0:02:54.8]} 3... c5 {[%clk 0:02:54.6]}
4. e5 {[%clk 0:02:49.3]} 4... Ng8 {[%clk 0:02:52.9]} 5. Nf3 {[%clk 0:02:47.6]}
5... Ne7 {[%clk 0:02:50.9]} 6. b3 {[%clk 0:02:39.3]} 6... Nf5 {[%clk 0:02:48.2]}
7. Bb2 {[%clk 0:02:38.4]} 7... Nc6 {[%clk 0:02:47.4]} 8. Ne4 {[%clk 0:02:36.8]}
8... d5 {[%clk 0:02:44.2]} 9. exd6 {[%clk 0:02:36.7]} 9... Bxd6 {[%clk
0:02:44.4]} 10. Bd3 {[%clk 0:02:13.5]} 10... O-O {[%clk 0:02:39.7]} 11. Nxd6
{[%clk 0:01:57.9]} 11... Qxd6 {[%clk 0:02:37]} 12. Bxf5 {[%clk 0:01:54.1]} 12...
exf5 {[%clk 0:02:37.9]} 13. O-O {[%clk 0:01:53.5]} 13... Nd4 {[%clk 0:02:37.6]}
14. Nxd4 {[%clk 0:01:29.2]} 14... cxd4 {[%clk 0:02:36.9]} 15. Qf3 {[%clk
0:01:29.7]} 15... Rb8 {[%clk 0:02:27.5]} 16. a4 {[%clk 0:01:21]} 16... Be6
{[%clk 0:02:25.1]} 17. Ba3 {[%clk 0:01:20.9]} 17... Qb6 {[%clk 0:02:15.4]} 18.
a5 {[%clk 0:01:19.7]} 18... Qc7 {[%clk 0:02:09.9]} 19. Bxf8 {[%clk 0:01:18.4]}
19... Kxf8 {[%clk 0:02:10.8]} 20. Rfe1 {[%clk 0:01:00.2]} 20... g6 {[%clk
0:02:09.2]} 21. d3 {[%clk 0:00:54.7]} 21... a6 {[%clk 0:02:08.9]} 22. b4 {[%clk
0:00:54.9]} 22... Kg7 {[%clk 0:02:06.9]} 23. Qh3 {[%clk 0:00:52.9]} 23... h5
{[%clk 0:02:02.6]} 24. Qh4 {[%clk 0:00:52.9]} 24... b6 {[%clk 0:01:58.1]} 25.
Qxd4+ {[%clk 0:00:51.6]} 25... Kh7 {[%clk 0:01:56.7]} 26. axb6 {[%clk
0:00:51.8]} 26... Rxb6 {[%clk 0:01:57.6]} 27. c5 {[%clk 0:00:52]} 27... Rc6
{[%clk 0:01:55.3]} 28. h4 {[%clk 0:00:50.6]} 28... Qb7 {[%clk 0:01:51]} 29. Ra5
{[%clk 0:00:47.2]} 29... Rc8 {[%clk 0:01:45.3]} 30. Rea1 {[%clk 0:00:42.6]}
30... Bd5 {[%clk 0:01:45.3]} 31. Rxa6 {[%clk 0:00:34.7]} 31... Rf8 {[%clk
0:01:39.7]} 32. Ra7 {[%clk 0:00:33.2]} 32... Qc6 {[%clk 0:01:38]} 33. R1a6
{[%clk 0:00:33.3]} 1-0

[Event "*** Titled Tuesday Blitz"]
[Site "Chess.com"]
[Date "2020.05.26"]
[Round "2"]
[White "Hydrargyrum_Girl"]
[Black "theblitzchamp"]
[Result "1-0"]
[WhiteElo "2329"]
[BlackElo "2683"]
[TimeControl "180+1"]
[EndTime "10:15:57 PDT"]
[Termination "Hydrargyrum_Girl won on time"]

1. e4 {[%clk 0:02:58.7]} 1... e5 {[%clk 0:02:59.5]} 2. Nf3 {[%clk 0:02:58.2]}
2... d6 {[%clk 0:02:58.1]} 3. d4 {[%clk 0:02:57.3]} 3... Nf6 {[%clk 0:02:58.4]}
4. Nc3 {[%clk 0:02:55.9]} 4... Nbd7 {[%clk 0:02:58.4]} 5. Bc4 {[%clk 0:02:55.5]}
5... Be7 {[%clk 0:02:58.8]} 6. Ng5 {[%clk 0:02:54.9]} 6... O-O {[%clk
0:02:58.8]} 7. Bxf7+ {[%clk 0:02:53.5]} 7... Rxf7 {[%clk 0:02:58.7]} 8. Ne6
{[%clk 0:02:53.5]} 8... Qe8 {[%clk 0:02:59.2]} 9. Nxc7 {[%clk 0:02:54.4]} 9...
Qd8 {[%clk 0:02:59.6]} 10. Nxa8 {[%clk 0:02:54.1]} 10... b6 {[%clk 0:02:59.5]}
11. dxe5 {[%clk 0:02:49.6]} 11... dxe5 {[%clk 0:02:56.3]} 12. Nd5 {[%clk
0:02:49.5]} 12... Bb7 {[%clk 0:02:51.2]} 13. Nac7 {[%clk 0:02:47.7]} 13... Nxe4
{[%clk 0:02:47.3]} 14. O-O {[%clk 0:02:46]} 14... Bc5 {[%clk 0:02:46.7]} 15. Be3
{[%clk 0:02:44.2]} 15... Qh4 {[%clk 0:02:30.1]} 16. f3 {[%clk 0:02:41.9]} 16...
Ng5 {[%clk 0:02:12.5]} 17. Qe1 {[%clk 0:02:39.8]} 17... Qh5 {[%clk 0:01:53.6]}
18. c4 {[%clk 0:02:32.6]} 18... Qg6 {[%clk 0:01:44.9]} 19. Bxc5 {[%clk 0:02:30]}
19... Nxc5 {[%clk 0:01:37.7]} 20. Kh1 {[%clk 0:02:25]} 20... Nd3 {[%clk
0:01:25.5]} 21. Qe3 {[%clk 0:02:23]} 21... e4 {[%clk 0:01:00.1]} 22. fxe4 {[%clk
0:02:21.1]} 22... Nxe4 {[%clk 0:00:59.8]} 23. Rxf7 {[%clk 0:02:20.7]} 23... Qxf7
{[%clk 0:00:59.5]} 24. Qe2 {[%clk 0:02:16.2]} 24... h5 {[%clk 0:00:15.9]} 25.
Kg1 {[%clk 0:02:14.3]} 25... Ndc5 {[%clk 0:00:13.9]} 26. Rf1 {[%clk 0:02:13.4]}
26... Qd7 {[%clk 0:00:13.3]} 27. Qxh5 {[%clk 0:02:10.1]} 27... b5 {[%clk
0:00:10.6]} 28. Qe5 {[%clk 0:01:59.8]} 28... Bxd5 {[%clk 0:00:02.3]} 29. Nxd5
{[%clk 0:02:00.7]} 29... Ne6 {[%clk 0:00:02]} 30. Qxe4 {[%clk 0:02:00.5]} 30...
bxc4 {[%clk 0:00:02.1]} 31. Qxc4 {[%clk 0:01:57.7]} 31... Qd6 {[%clk 0:00:02.1]}
32. Nf4 {[%clk 0:01:55]} 1-0

[Event "*** Titled Tuesday Blitz"]
[Site "Chess.com"]
[Date "2020.05.26"]
[Round "2"]
[White "ZuchBolt"]
[Black "Gennady_Kozlov"]
[Result "0-1"]
[WhiteElo "2235"]
[BlackElo "2562"]
[TimeControl "180+1"]
[EndTime "10:16:09 PDT"]
[Termination "Gennady_Kozlov won by resignation"]

1. d4 {[%clk 0:03:00.9]} 1... e6 {[%clk 0:02:59.8]} 2. c4 {[%clk 0:03:00.8]}
2... b6 {[%clk 0:03:00]} 3. g3 {[%clk 0:03:00.5]} 3... Bb7 {[%clk 0:03:00.5]} 4.
Nf3 {[%clk 0:03:00.4]} 4... f5 {[%clk 0:03:01.1]} 5. Bg2 {[%clk 0:03:00]} 5...
Nf6 {[%clk 0:03:02]} 6. O-O {[%clk 0:02:59.6]} 6... Be7 {[%clk 0:03:01.7]} 7. b3
{[%clk 0:02:59.3]} 7... O-O {[%clk 0:03:01.3]} 8. Bb2 {[%clk 0:02:59.4]} 8... d6
{[%clk 0:03:00.9]} 9. Nc3 {[%clk 0:02:59]} 9... Ne4 {[%clk 0:03:00.4]} 10. d5
{[%clk 0:02:57.5]} 10... Nxc3 {[%clk 0:02:59.4]} 11. Bxc3 {[%clk 0:02:58.4]}
11... e5 {[%clk 0:02:58.6]} 12. b4 {[%clk 0:02:55.8]} 12... Nd7 {[%clk
0:02:57.1]} 13. a4 {[%clk 0:02:54.2]} 13... Bf6 {[%clk 0:02:53.5]} 14. Qc2
{[%clk 0:02:48.5]} 14... g6 {[%clk 0:02:51.3]} 15. h4 {[%clk 0:02:47]} 15... Qe7
{[%clk 0:02:51]} 16. h5 {[%clk 0:02:43.4]} 16... e4 {[%clk 0:02:48.7]} 17. Nd4
{[%clk 0:02:39.7]} 17... Bxd4 {[%clk 0:02:47.9]} 18. Bxd4 {[%clk 0:02:39.9]}
18... Nf6 {[%clk 0:02:48.1]} 19. hxg6 {[%clk 0:02:38.9]} 19... hxg6 {[%clk
0:02:44]} 20. a5 {[%clk 0:02:35.9]} 20... Ng4 {[%clk 0:02:36.7]} 21. a6 {[%clk
0:02:17.3]} 21... Qh7 {[%clk 0:02:29.4]} 22. Rfc1 {[%clk 0:02:04.4]} 22... Qh2+
{[%clk 0:02:30.3]} 23. Kf1 {[%clk 0:02:04.6]} 23... Bc8 {[%clk 0:02:30]} 24. e3
{[%clk 0:01:53.9]} 24... Bd7 {[%clk 0:02:18.7]} 25. Qe2 {[%clk 0:01:38.4]} 25...
Rab8 {[%clk 0:02:09]} 26. Rab1 {[%clk 0:01:37.5]} 26... g5 {[%clk 0:02:04.4]}
27. c5 {[%clk 0:01:36]} 27... f4 {[%clk 0:02:04.2]} 28. exf4 {[%clk 0:01:33.6]}
28... e3 {[%clk 0:01:56.3]} 29. cxd6 {[%clk 0:01:06.9]} 29... gxf4 {[%clk
0:01:47.9]} 30. dxc7 {[%clk 0:00:58.5]} 30... exf2 {[%clk 0:01:46.3]} 31. Bxf2
{[%clk 0:00:47.4]} 31... Rbe8 {[%clk 0:01:46.1]} 32. Qc2 {[%clk 0:00:32.5]}
32... Ne3+ {[%clk 0:01:39.9]} 33. Bxe3 {[%clk 0:00:21.6]} 33... fxg3+ {[%clk
0:01:34.3]} 0-1

[Event "*** Titled Tuesday Blitz"]
[Site "Chess.com"]
[Date "2020.05.26"]
[Round "2"]
[White "Shubinkirill2003"]
[Black "Parhamov"]
[Result "1/2-1/2"]
[WhiteElo "2605"]
[BlackElo "3096"]
[TimeControl "180+1"]
[EndTime "10:16:10 PDT"]
[Termination "Game drawn by repetition"]

1. e4 {[%clk 0:03:00.9]} 1... e6 {[%clk 0:02:58.1]} 2. d4 {[%clk 0:03:00.5]}
2... d5 {[%clk 0:02:58.2]} 3. Nc3 {[%clk 0:03:00.6]} 3... Bb4 {[%clk 0:02:57.7]}
4. e5 {[%clk 0:03:00.3]} 4... Qd7 {[%clk 0:02:57.9]} 5. a3 {[%clk 0:02:58.7]}
5... Bxc3+ {[%clk 0:02:57.7]} 6. bxc3 {[%clk 0:02:59.5]} 6... b6 {[%clk
0:02:58.1]} 7. Qg4 {[%clk 0:02:57.1]} 7... f5 {[%clk 0:02:58.2]} 8. Qh5+ {[%clk
0:02:52.4]} 8... Qf7 {[%clk 0:02:56.6]} 9. Qxf7+ {[%clk 0:02:51.5]} 9... Kxf7
{[%clk 0:02:56.5]} 10. h4 {[%clk 0:02:47.2]} 10... Ba6 {[%clk 0:02:54.9]} 11.
Ne2 {[%clk 0:02:42.4]} 11... c5 {[%clk 0:02:52.9]} 12. Be3 {[%clk 0:02:31.7]}
12... Nd7 {[%clk 0:02:52.1]} 13. Nf4 {[%clk 0:02:29.3]} 13... Bxf1 {[%clk
0:02:51.3]} 14. Rxf1 {[%clk 0:02:27.5]} 14... Ne7 {[%clk 0:02:51]} 15. a4 {[%clk
0:02:15.5]} 15... Rhc8 {[%clk 0:02:49.2]} 16. Kd2 {[%clk 0:02:14.1]} 16... Nc6
{[%clk 0:02:45.5]} 17. Nd3 {[%clk 0:02:04.2]} 17... Na5 {[%clk 0:02:44.9]} 18.
Bf4 {[%clk 0:01:48.5]} 18... Rc6 {[%clk 0:02:43.4]} 19. f3 {[%clk 0:01:43.3]}
19... Rac8 {[%clk 0:02:42.9]} 20. Ra2 {[%clk 0:01:42.7]} 20... cxd4 {[%clk
0:02:33.8]} 21. cxd4 {[%clk 0:01:41.2]} 21... Nb8 {[%clk 0:02:33.9]} 22. g4
{[%clk 0:01:35.5]} 22... g6 {[%clk 0:02:32.9]} 23. h5 {[%clk 0:01:34.9]} 23...
Rc4 {[%clk 0:02:32.2]} 24. hxg6+ {[%clk 0:01:33.5]} 24... hxg6 {[%clk
0:02:31.9]} 25. Rh1 {[%clk 0:01:14.7]} 25... Nbc6 {[%clk 0:02:31.7]} 26. gxf5
{[%clk 0:00:59]} 26... gxf5 {[%clk 0:02:30.8]} 27. Raa1 {[%clk 0:00:55.6]} 27...
Nxd4 {[%clk 0:02:25.9]} 28. Rh7+ {[%clk 0:00:52.5]} 28... Kg8 {[%clk 0:02:22.3]}
29. Rah1 {[%clk 0:00:52]} 29... Rxc2+ {[%clk 0:02:20.6]} 30. Kd1 {[%clk
0:00:46.1]} 30... R2c3 {[%clk 0:01:19.9]} 31. Rh8+ {[%clk 0:00:44.8]} 31... Kg7
{[%clk 0:01:18.6]} 32. R1h7+ {[%clk 0:00:42.8]} 32... Kg6 {[%clk 0:01:18.3]} 33.
Rh6+ {[%clk 0:00:42.1]} 33... Kg7 {[%clk 0:01:18.3]} 34. R6h7+ {[%clk
0:00:41.3]} 34... Kg6 {[%clk 0:01:18.3]} 35. Rh6+ {[%clk 0:00:41.2]} 35... Kg7
{[%clk 0:01:18.5]} 36. R6h7+ {[%clk 0:00:40.2]} 1/2-1/2

[Event "*** Titled Tuesday Blitz"]
[Site "Chess.com"]
[Date "2020.05.26"]
[Round "2"]
[White "12teen"]
[Black "m_ezat"]
[Result "1-0"]
[WhiteElo "2738"]
[BlackElo "2489"]
[TimeControl "180+1"]
[EndTime "10:16:12 PDT"]
[Termination "12teen won by checkmate"]

1. g3 {[%clk 0:03:00.9]} 1... Nf6 {[%clk 0:02:59.4]} 2. Bg2 {[%clk 0:03:01.8]}
2... g6 {[%clk 0:02:59.5]} 3. d3 {[%clk 0:03:02.7]} 3... Bg7 {[%clk 0:02:59.9]}
4. e4 {[%clk 0:03:03.3]} 4... O-O {[%clk 0:03:00.1]} 5. Nc3 {[%clk 0:03:02.1]}
5... d6 {[%clk 0:02:59.3]} 6. f4 {[%clk 0:03:02.2]} 6... c5 {[%clk 0:02:57.6]}
7. h3 {[%clk 0:03:02.6]} 7... Nc6 {[%clk 0:02:57.7]} 8. g4 {[%clk 0:03:03.2]}
8... Rb8 {[%clk 0:02:57.4]} 9. Nf3 {[%clk 0:03:01.3]} 9... b5 {[%clk 0:02:56.7]}
10. Ne2 {[%clk 0:03:01.9]} 10... b4 {[%clk 0:02:56.1]} 11. Ng3 {[%clk
0:03:02.5]} 11... Ba6 {[%clk 0:02:51.2]} 12. g5 {[%clk 0:03:01.1]} 12... Nd7
{[%clk 0:02:49.6]} 13. h4 {[%clk 0:03:01.6]} 13... c4 {[%clk 0:02:42]} 14. d4
{[%clk 0:03:01.6]} 14... Qa5 {[%clk 0:02:32.4]} 15. Kf2 {[%clk 0:02:47.5]} 15...
b3 {[%clk 0:02:28.1]} 16. c3 {[%clk 0:02:24.8]} 16... bxa2 {[%clk 0:02:27.4]}
17. h5 {[%clk 0:02:23.1]} 17... Rfe8 {[%clk 0:02:02.5]} 18. hxg6 {[%clk
0:02:15.4]} 18... fxg6 {[%clk 0:01:53.4]} 19. f5 {[%clk 0:02:06.3]} 19... Nb6
{[%clk 0:01:39.9]} 20. Nh4 {[%clk 0:01:59.7]} 20... Na4 {[%clk 0:01:30.7]} 21.
fxg6 {[%clk 0:01:46.3]} 21... hxg6 {[%clk 0:01:20.9]} 22. Nxg6 {[%clk
0:01:46.2]} 22... Nxb2 {[%clk 0:00:59.1]} 23. Qh5 {[%clk 0:01:27.2]} 23... Nd3+
{[%clk 0:00:42.8]} 24. Kg1 {[%clk 0:01:14.6]} 24... Qxc3 {[%clk 0:00:31.4]} 25.
Qh7+ {[%clk 0:01:14.7]} 25... Kf7 {[%clk 0:00:30.8]} 26. Nf5 {[%clk 0:01:14]}
26... Qe1+ {[%clk 0:00:26]} 27. Kh2 {[%clk 0:01:14.4]} 27... Rh8 {[%clk
0:00:20.5]} 28. Nxh8+ {[%clk 0:01:14.3]} 28... Rxh8 {[%clk 0:00:19.7]} 29. Nh6+
{[%clk 0:01:14.8]} 29... Ke6 {[%clk 0:00:16.1]} 30. Qf5# {[%clk 0:01:14.7]} 1-0

[Event "*** Titled Tuesday Blitz"]
[Site "Chess.com"]
[Date "2020.05.26"]
[Round "2"]
[White "Dmitry_M1"]
[Black "nadirsm"]
[Result "1-0"]
[WhiteElo "2406"]
[BlackElo "2132"]
[TimeControl "180+1"]
[EndTime "10:16:13 PDT"]
[Termination "Dmitry_M1 won by resignation"]

1. d4 {[%clk 0:03:00.9]} 1... d5 {[%clk 0:02:59.6]} 2. c4 {[%clk 0:03:00.8]}
2... c6 {[%clk 0:03:00]} 3. Nf3 {[%clk 0:03:00.2]} 3... e6 {[%clk 0:03:00.2]} 4.
Nc3 {[%clk 0:03:00.3]} 4... f5 {[%clk 0:03:00.7]} 5. g3 {[%clk 0:02:57.8]} 5...
Nf6 {[%clk 0:03:01]} 6. Bg2 {[%clk 0:02:58.4]} 6... Bd6 {[%clk 0:03:01.6]} 7.
O-O {[%clk 0:02:59]} 7... O-O {[%clk 0:03:02.3]} 8. b3 {[%clk 0:02:54.5]} 8...
Nbd7 {[%clk 0:03:02.3]} 9. Qc2 {[%clk 0:02:51.8]} 9... Ne4 {[%clk 0:03:02.1]}
10. Nd2 {[%clk 0:02:48.6]} 10... Qf6 {[%clk 0:03:00.1]} 11. e3 {[%clk
0:02:41.2]} 11... Qh6 {[%clk 0:02:56.8]} 12. Bb2 {[%clk 0:01:56]} 12... Ndf6
{[%clk 0:02:52.2]} 13. Rae1 {[%clk 0:01:36.5]} 13... Ng4 {[%clk 0:02:05.6]} 14.
Nf3 {[%clk 0:01:35.4]} 14... Bd7 {[%clk 0:01:37]} 15. Ne2 {[%clk 0:01:16.6]}
15... Nxe3 {[%clk 0:01:16.8]} 16. fxe3 {[%clk 0:01:10]} 16... Qxe3+ {[%clk
0:01:16.8]} 17. Kh1 {[%clk 0:01:09.5]} 17... Nf2+ {[%clk 0:01:11.1]} 18. Rxf2
{[%clk 0:01:03.5]} 18... Qxf2 {[%clk 0:01:09.8]} 19. Bc1 {[%clk 0:01:01.6]} 1-0